bitfinex/quotes_ETHUSD_20240630
["timestamp","ask_amount","ask_price","bid_price","bid_amount"]
[1719763756000,0.63957812,3401.0,3400.4,2.58746234]
[1719763756545,0.63957812,3401.0,3400.4,2.3044]
[1719763757790,0.671803,3401.1,3400.4,2.3044]
[1719763757994,0.63957152,3401.0,3400.4,2.3044]
[1719763758287,0.63957152,3401.0,3400.5,0.28305364]
[1719763758497,0.63957152,3401.0,3400.4,2.3044]
[1719763759361,0.51603745,3400.9,3400.4,2.3044]
[1719763759563,0.51603745,3400.9,3400.5,0.28305364]
[1719763760797,2.76923745,3400.9,3400.5,0.28305364]
[1719763761100,2.76923745,3400.9,3400.2,3.1534]
[1719763761301,2.76923745,3400.9,3400.6,0.28305503]
[1719763761499,2.76923745,3400.9,3400.2,3.1534]
[1719763761500,0.27692375,3400.8,3400.2,3.1534]
[1719763761702,2.2532,3400.9,3400.7,0.28304633]
[1719763761912,0.63968065,3400.8,3400.2,3.1534]
[1719763762249,0.63968065,3400.8,3400.3,0.28308114]
[1719763762530,0.63968065,3400.8,3400.2,3.1534]
[1719763762851,0.63968065,3400.8,3400.3,0.27367398]
[1719763763190,1.22896872,3400.8,3400.2,2.3044]
[1719763763395,0.63963454,3400.7,3400.2,2.3044]
[1719763763550,2.2532,3400.9,3400.3,0.27367398]
[1719763763770,0.63966818,3400.8,3400.3,0.27367398]
[1719763763979,0.63966818,3400.8,3400.2,2.3044]
[1719763764190,2.86342,3400.9,3400.3,0.27367398]
[1719763764366,0.63965966,3400.8,3400.3,0.27367398]
[1719763764568,0.63965966,3400.8,3400.2,2.3044]
[1719763764767,0.63965966,3400.8,3400.3,0.27367398]
[1719763764986,0.63965966,3400.8,3400.2,2.3044]
[1719763765164,0.63965966,3400.8,3400.3,0.27367398]
[1719763765691,0.63965966,3400.8,3400.2,2.3044]
[1719763765901,0.63965966,3400.8,3400.4,0.27366528]
[1719763766197,1.35787757,3400.8,3400.5,0.27365657]
[1719763766361,0.71821791,3400.8,3400.2,2.3044]
[1719763766561,0.71821791,3400.8,3400.3,0.27367398]
[1719763767087,0.71821791,3400.8,3400.2,2.3044]
[1719763767258,0.71821791,3400.8,3400.4,0.27366528]
[1719763767461,0.71821791,3400.8,3400.3,0.27367398]
[1719763767768,0.71821791,3400.8,3400.4,0.27366528]
[1719763767976,2.2532,3400.9,3400.2,2.3044]
[1719763768178,1.4887007,3400.8,3399.9,2.2623]
[1719763768477,0.6397007,3400.7,3400.0,0.27370009]
[1719763770110,0.6397007,3400.7,3400.0,1.12270009]
[1719763770311,3.0,3400.8,3400.1,2.2623]
[1719763770469,0.63964712,3400.7,3400.1,2.2623]
[1719763770675,3.0,3400.8,3400.2,0.27368269]
[1719763771010,0.63963911,3400.7,3400.2,0.27368269]
[1719763771205,3.0,3400.8,3400.2,0.27368269]
[1719763771352,0.63965829,3400.7,3400.2,0.27368269]
[1719763771558,3.0,3400.8,3400.2,0.27368269]
[1719763771757,0.63965191,3400.7,3400.2,0.27368269]
[1719763772000,3.0,3400.8,3400.2,0.27368269]
[1719763772168,0.63964291,3400.7,3400.2,0.27368269]
[1719763773258,0.63964291,3400.7,3400.0,0.849]
[1719763773457,0.63964291,3400.7,3400.3,0.27367398]
[1719763773660,0.71821791,3400.7,3400.0,0.849]
[1719763773885,3.0,3400.8,3400.4,0.27369564]
[1719763774098,0.63967705,3400.7,3400.0,0.849]
[1719763774265,3.0,3400.8,3400.5,0.27368694]
[1719763774599,0.63967668,3400.7,3399.9,3.1113]
[1719763774896,0.52532,3400.8,3400.6,0.27367824]
[1719763775106,0.63967822,3400.7,3399.9,3.1113]
[1719763775460,0.63967822,3400.7,3399.9,2.2623]
[1719763775806,2.21539804,3400.7,3399.9,2.2623]
[1719763775956,1.57571982,3400.7,3399.9,2.2623]
[1719763776160,0.63970675,3400.6,3399.9,2.2623]
[1719763777602,1.57571982,3400.7,3399.9,2.2623]
[1719763777804,0.63972015,3400.6,3399.9,2.2623]
[1719763778301,1.57571982,3400.7,3399.9,2.2623]
[1719763778897,3.321,3400.5,3399.7,2.2623]
[1719763779098,0.849,3400.3,3399.7,2.2623]
[1719763779805,3.321,3400.5,3399.7,2.2623]
[1719763780163,3.321,3400.5,3399.8,0.26467287]
[1719763780403,2.472,3400.5,3399.8,0.26467287]
[1719763780905,3.321,3400.5,3399.8,0.26467287]
[1719763781106,3.9531,3400.5,3399.8,0.26467287]
[1719763781257,3.9531,3400.5,3399.7,2.2623]
[1719763781458,0.849,3400.3,3399.7,2.2623]
[1719763781697,0.849,3400.3,3399.8,0.26467287]
[1719763781900,3.1041,3400.5,3399.7,2.2623]
[1719763782072,1.0351735,3400.4,3399.9,0.26466416]
[1719763782259,0.39531,3400.4,3399.8,0.26467287]
[1719763782460,1.03518332,3400.4,3399.7,2.2623]
[1719763782901,2.472,3400.3,3399.8,0.26467287]
[1719763783103,2.77302791,3400.3,3399.6,0.849]
[1719763783566,2.77302791,3400.3,3399.7,0.26468157]
[1719763784583,2.77302791,3400.3,3399.8,0.26467287]
[1719763784781,2.77302791,3400.3,3399.5,0.849]
[1719763785105,2.77302791,3400.3,3399.6,0.26469028]
[1719763786329,2.77302791,3400.3,3399.7,3.1113]
[1719763786330,0.30102791,3400.3,3399.7,3.1113]
[1719763786506,2.472,3400.5,3399.7,3.1113]
[1719763786810,2.472,3400.5,3399.8,0.26467287]
[1719763786979,5.472,3400.5,3399.8,0.26467287]
[1719763790778,5.472,3400.5,3399.9,0.849]
[1719763791024,2.472,3400.5,3400.0,0.26477823]
[1719763791183,0.5472,3400.4,3400.0,0.26477823]
[1719763791537,0.5472,3400.4,3399.6,0.849]
[1719763791885,2.3953,3400.3,3399.7,0.26480435]
[1719763793025,2.3953,3400.3,3399.6,0.849]
[1719763793384,2.3953,3400.3,3399.7,0.26480435]
[1719763795285,2.77445,3400.3,3399.7,0.26480435]
[1719763795642,2.77445,3400.3,3399.5,3.3061]
[1719763795803,3.0,3400.2,3399.5,3.3061]
[1719763796000,3.0,3400.2,3399.6,0.26481305]
[1719763803503,5.3953,3400.3,3399.6,0.26481305]
[1719763806436,5.3953,3400.3,3399.6,1.11381305]
[1719763806724,6.07445,3400.3,3399.6,1.11381305]
[1719763808257,6.07445,3400.3,3399.6,0.849]
[1719763808615,6.07445,3400.3,3399.7,0.26485082]
[1719763812852,0.63982486,3400.2,3399.7,0.26485082]
[1719763813058,3.0,3400.2,3399.7,0.26485082]
[1719763813621,3.0,3400.2,3399.5,0.849]
[1719763813955,3.0,3400.2,3399.6,0.2648645]
[1719763816027,3.64928791,3400.2,3399.6,0.2648645]
[1719763817327,3.0,3400.2,3399.6,0.2648645]
[1719763817523,2.3953,3400.3,3399.6,0.2648645]
[1719763817730,0.63982554,3400.2,3399.6,0.2648645]
[1719763817936,3.63982554,3400.2,3399.5,0.849]
[1719763818148,3.0,3400.2,3399.7,0.26485579]
[1719763818362,0.63983668,3400.1,3399.5,0.849]
[1719763818553,3.0,3400.2,3399.5,0.849]
[1719763818750,0.63986389,3400.1,3399.6,0.2648645]
[1719763819039,0.63986389,3400.1,3399.7,0.26485579]
[1719763819263,0.63986389,3400.1,3399.5,0.849]
[1719763819745,0.63986389,3400.1,3399.6,0.2648645]
[1719763820489,3.0,3400.2,3399.6,0.2648645]
[1719763820688,0.6398882,3400.1,3399.6,0.2648645]
[1719763820993,3.0,3400.2,3399.6,0.2648645]
[1719763821201,0.63988496,3400.1,3399.6,0.2648645]
[1719763821380,3.0,3400.2,3399.6,0.2648645]
[1719763821581,0.63988337,3400.1,3399.6,0.2648645]
[1719763821783,0.63988337,3400.1,3399.5,0.849]
[1719763822099,3.0,3400.2,3399.7,2.3834]
[1719763822391,3.0,3400.5,3399.7,3.2324]
[1719763822594,0.63983464,3400.4,3399.8,0.26484708]
[1719763822995,0.63983464,3400.4,3399.7,3.2324]
[1719763823561,3.90374208,3400.5,3399.7,3.2324]
[1719763823767,0.6397939,3400.4,3399.7,3.2324]
[1719763826860,0.63975338,3400.3,3399.7,3.2324]
[1719763827065,0.63975338,3400.2,3399.7,3.2324]
[1719763827266,0.42469583,3400.4,3399.7,3.2324]
[1719763827466,1.06444987,3400.4,3399.7,3.2324]
[1719763829931,0.63975136,3400.3,3399.7,3.2324]
[1719763830225,0.63975136,3400.2,3399.8,0.849]
[1719763830437,0.63978501,3400.1,3399.9,0.26483175]
[1719763830618,0.59135958,3400.3,3399.7,2.3834]
[1719763830820,0.63978356,3400.2,3399.7,2.3834]
[1719763831205,0.63978356,3400.2,3399.8,0.26484045]
[1719763831548,0.63978356,3400.2,3399.7,2.3834]
[1719763831734,0.63978356,3400.2,3399.9,0.32068918]
[1719763832031,0.95216606,3400.2,3399.7,2.3834]
[1719763832819,0.63978356,3400.2,3399.7,2.3834]
[1719763833646,0.63981682,3400.1,3399.7,2.3834]
[1719763833959,0.59135958,3400.3,3399.7,2.3834]
[1719763834103,0.63981498,3400.2,3399.7,2.3834]
[1719763834538,0.63981498,3400.1,3399.7,2.3834]
[1719763834741,3.0,3400.5,3399.7,2.3834]
[1719763834943,1.18870705,3400.4,3399.7,2.3834]
[1719763835130,0.63981705,3400.3,3399.7,2.3834]
[1719763836840,0.63981009,3400.2,3399.7,2.3834]
[1719763837032,0.54889,3400.4,3399.7,2.3834]
[1719763837231,0.63980542,3400.3,3399.7,2.3834]
[1719763837754,0.63980542,3400.3,3399.8,0.849]
[1719763838161,0.63980542,3400.3,3399.9,2.3527]
[1719763838319,3.0,3400.7,3400.2,2.3527]
[1719763838759,3.0,3400.8,3400.6,0.849]
[1719763838962,3.0,3400.8,3400.4,0.849]
[1719763839259,0.63961857,3400.7,3400.4,0.849]
[1719763839434,0.96324173,3401.0,3400.4,0.849]
[1719763839637,0.63966123,3400.9,3400.4,0.849]
[1719763839831,0.63967203,3400.8,3400.4,0.849]
[1719763840034,0.63967203,3400.7,3400.2,2.3527]
[1719763840358,0.16029138,3400.8,3400.2,3.2017]
[1719763840557,3.0,3401.2,3400.2,2.3527]
[1719763840558,2.2969,3401.0,3400.2,2.3527]
[1719763840733,0.63969286,3400.9,3400.2,3.2017]
[1719763840935,3.63969286,3400.9,3400.2,3.2017]
[1719763841245,1.61825215,3400.8,3400.2,2.3527]
[1719763841448,0.97855929,3400.8,3400.2,3.2017]
[1719763843524,0.97855929,3400.8,3400.3,0.3206727]
[1719763843730,0.97855929,3400.8,3400.2,3.2017]
[1719763843931,0.97855929,3400.8,3400.4,0.32066235]
[1719763844251,3.0,3400.9,3400.5,0.320652]
[1719763844252,0.34987862,3400.7,3400.5,0.320652]
[1719763844458,0.34987862,3400.7,3400.2,3.2017]
[1719763844776,0.34987862,3400.7,3400.3,0.3206727]
[1719763845075,0.34987862,3400.7,3400.2,3.2017]
[1719763845369,3.0,3400.9,3400.4,0.849]
[1719763845553,3.0,3400.7,3400.4,0.849]
[1719763845726,3.0,3400.9,3400.5,0.320652]
[1719763845931,0.52969,3400.9,3400.4,0.849]
[1719763846247,3.0,3401.1,3400.4,0.849]
[1719763846449,5.2969,3401.2,3400.4,0.849]
[1719763846662,0.63967328,3401.1,3400.4,0.849]
[1719763846870,3.63967328,3401.1,3400.4,0.849]
[1719763847036,0.63965639,3401.0,3400.4,0.849]
[1719763847769,3.0,3401.1,3400.4,0.849]
[1719763848070,3.0,3401.2,3400.6,0.849]
[1719763848235,3.96348214,3401.3,3400.7,0.32063132]
[1719763848429,0.71143821,3401.2,3400.6,0.849]
[1719763848632,0.96348214,3401.3,3400.6,0.849]
[1719763849034,3.0,3401.5,3400.6,0.849]
[1719763849231,0.63962096,3401.4,3400.6,0.849]
[1719763849692,0.849,3401.4,3400.6,0.849]
[1719763849840,0.63963605,3401.3,3400.6,0.849]
[1719763850169,0.44886361,3401.2,3400.5,2.2547]
[1719763850332,0.44886361,3401.2,3400.9,0.849]
[1719763850533,0.63958971,3401.5,3400.9,2.2547]
[1719763850755,3.63958971,3401.5,3400.9,2.2547]
[1719763850946,1.48858971,3401.4,3401.0,0.32046088]
[1719763851146,0.63958971,3401.3,3400.6,2.2547]
[1719763851355,0.44885897,3401.2,3401.1,0.32045054]
[1719763851993,0.44885897,3401.2,3400.6,2.2547]
[1719763852137,0.44885897,3401.2,3401.1,0.32045054]
[1719763852339,0.44885897,3401.2,3400.6,2.2547]
[1719763852556,0.44885897,3401.2,3401.1,0.32045054]
[1719763853076,0.44885897,3401.2,3400.6,2.2547]
[1719763853267,0.44885897,3401.2,3400.7,0.32049191]
[1719763853466,0.44885897,3401.2,3400.6,2.2547]
[1719763853675,0.44885897,3401.2,3400.7,0.32049191]
[1719763853837,0.44885897,3401.2,3400.6,2.2547]
[1719763854036,0.44885897,3401.2,3400.7,0.32049191]
[1719763854253,0.44885897,3401.2,3400.6,2.2547]
[1719763854448,0.44885897,3401.2,3400.7,0.32049191]
[1719763854663,0.44885897,3401.2,3400.6,2.2547]
[1719763854940,0.44885897,3401.2,3400.7,0.32049191]
[1719763855337,0.44885897,3401.2,3400.6,2.2547]
[1719763855536,0.44885897,3401.2,3400.8,0.32048156]
[1719763855852,0.44885897,3401.2,3400.9,0.32047122]
[1719763856059,0.44885897,3401.2,3400.6,2.2547]
[1719763856242,5.2855,3401.5,3400.7,1.16949191]
[1719763856442,3.63966191,3401.4,3400.7,1.16949191]
[1719763856641,3.0,3401.4,3400.7,0.849]
[1719763856879,3.1345,3401.5,3400.8,0.32048156]
[1719763857183,3.0,3401.4,3400.6,2.2547]
[1719763857386,3.91345,3401.4,3400.9,0.32047122]
[1719763857592,3.91345,3401.4,3400.6,2.2547]
[1719763858107,3.91345,3401.4,3400.7,0.32049191]
[1719763861213,3.91345,3401.4,3400.7,1.16949191]
[1719763861805,3.91345,3401.4,3400.9,0.849]
[1719763862109,0.41498791,3401.3,3401.0,0.31162095]
[1719763864517,3.0,3401.4,3401.0,2.68602095]
[1719763864669,3.0,3401.7,3401.1,0.849]
[1719763864875,3.0,3401.7,3401.2,0.31158035]
[1719763866581,2.2855,3401.8,3401.2,0.31158035]
[1719763866815,2.2855,3401.8,3401.3,0.849]
[1719763867189,2.2855,3401.8,3401.0,2.3744]
[1719763867190,3.1345,3401.8,3401.0,2.3744]
[1719763867519,3.0,3401.7,3401.0,2.3744]
[1719763867827,0.62805,3401.6,3401.0,2.3744]
[1719763871330,0.62805,3401.6,3400.7,2.3033]
[1719763871638,0.62805,3401.6,3400.7,3.1523]
[1719763871639,2.4965,3401.5,3400.7,3.1523]
[1719763871795,5.4965,3401.5,3400.8,0.31156531]
[1719763871991,0.697355,3401.4,3400.8,0.31156531]
[1719763872205,3.697355,3401.4,3400.8,0.31156531]
[1719763878445,3.697355,3401.4,3400.7,3.1523]
[1719763878640,3.697355,3401.4,3400.5,0.849]
[1719763878641,2.3689,3401.3,3400.5,0.849]
[1719763878794,2.99998291,3401.3,3400.5,0.849]
[1719763878999,5.99998291,3401.3,3400.6,0.31155782]
[1719763879242,0.697355,3401.2,3400.6,0.31155782]
[1719763879402,3.697355,3401.2,3400.6,0.31155782]
[1719763880102,2.3689,3401.1,3400.6,0.31155782]
[1719763881449,2.3689,3401.1,3400.7,0.849]
[1719763881633,3.0,3401.2,3400.7,0.849]
[1719763881834,2.3689,3401.3,3400.8,0.31153714]
[1719763882148,2.99069,3401.3,3400.7,0.849]
[1719763882450,3.0,3401.2,3400.7,0.849]
[1719763882805,3.0,3401.2,3400.3,2.3243]
[1719763883007,3.0,3401.2,3400.7,0.849]
[1719763883209,0.599069,3401.1,3400.7,0.849]
[1719763885058,0.599069,3401.1,3400.3,2.3243]
[1719763885365,0.599069,3401.1,3400.6,0.849]
[1719763885722,0.599069,3401.1,3400.7,0.31155909]
[1719763886352,0.599069,3401.1,3400.8,0.31154875]
[1719763886764,0.599069,3401.1,3400.6,0.849]
[1719763887053,0.599069,3401.1,3400.9,0.3115384]
[1719763887263,0.5967969,3401.0,3400.6,0.849]
[1719763887562,3.0,3401.2,3400.6,0.849]
[1719763887856,2.3689,3401.3,3400.6,0.849]
[1719763888259,0.63994566,3401.2,3400.6,0.849]
[1719763888477,3.63994566,3401.2,3400.6,0.849]
[1719763888614,0.63994566,3401.1,3400.6,0.849]
[1719763889651,0.63994566,3401.1,3400.3,2.3243]
[1719763889952,0.63994566,3401.1,3400.6,0.849]
[1719763890154,1.24083023,3401.1,3400.6,0.849]
[1719763890355,0.60088457,3401.1,3400.6,0.849]
[1719763891123,0.64000393,3401.0,3400.6,0.849]
[1719763891320,0.60088457,3401.1,3400.6,0.849]
[1719763891521,0.64000266,3401.0,3400.6,0.849]
[1719763893666,3.0,3401.2,3400.6,0.849]
[1719763893957,1.17687234,3401.1,3400.6,0.849]
[1719763894116,0.63998234,3401.0,3400.6,0.849]
[1719763894520,0.53689,3401.1,3400.6,0.849]
[1719763894722,0.63998393,3401.0,3400.6,0.849]
[1719763895142,0.53689,3401.1,3400.3,2.3243]
[1719763895358,0.63998433,3401.0,3400.5,0.849]
[1719763895661,3.0,3401.2,3400.5,0.849]
[1719763895962,0.63997901,3401.1,3400.5,0.849]
[1719763896168,0.63997901,3401.0,3400.5,0.849]
[1719763896456,3.53689,3401.2,3400.5,0.849]
[1719763896656,0.63997966,3401.1,3400.5,0.849]
[1719763897839,3.53689,3401.2,3400.5,0.849]
[1719763898038,0.63997974,3401.1,3400.5,0.849]
[1719763900479,0.63997974,3401.1,3400.6,0.31026946]
[1719763900683,1.29455671,3401.1,3400.6,0.31026946]
[1719763900844,0.63997974,3401.0,3400.6,0.31026946]
[1719763901246,0.65457697,3401.1,3400.6,0.31026946]
[1719763901553,1.27993777,3401.0,3400.6,0.31026946]
[1719763901770,0.63996334,3401.0,3400.6,0.31026946]
[1719763902374,0.63996334,3401.0,3400.5,0.849]
[1719763907304,0.63996334,3401.0,3400.3,2.3243]
[1719763907592,1.24084967,3401.0,3400.4,0.849]
[1719763909453,0.63996334,3401.0,3400.4,0.849]
[1719763910084,3.0,3401.2,3400.4,0.849]
[1719763910403,0.63998594,3401.1,3400.4,0.849]
[1719763910578,0.63998594,3401.0,3400.4,0.849]
[1719763910895,3.0,3401.2,3400.4,0.849]
[1719763911105,0.63999091,3401.1,3400.4,0.849]
[1719763911253,0.63999091,3401.0,3400.4,0.849]
[1719763911454,3.0,3401.2,3400.4,0.849]
[1719763911786,0.63999459,3401.1,3400.4,0.849]
[1719763911955,5.3689,3401.3,3400.4,0.849]
[1719763911956,0.63999459,3401.0,3400.4,0.849]
[1719763912271,3.0,3401.2,3400.4,0.849]
[1719763912469,0.64002078,3401.1,3400.4,0.849]
[1719763912654,0.64002078,3401.0,3400.4,0.849]
[1719763912857,3.0,3401.2,3400.4,0.849]
[1719763913085,0.64002135,3401.1,3400.4,0.849]
[1719763913280,0.64002135,3401.0,3400.4,0.849]
[1719763913486,3.0,3401.2,3400.4,0.849]
[1719763913686,0.64002193,3401.1,3400.4,0.849]
[1719763913887,0.64002193,3401.0,3400.4,0.849]
[1719763914088,3.0,3401.2,3400.4,0.849]
[1719763914302,2.3689,3401.3,3400.4,0.849]
[1719763914303,5.3689,3401.3,3400.4,0.849]
[1719763914563,0.6400206,3401.2,3400.4,0.849]
[1719763914763,3.0,3401.2,3400.4,0.849]
[1719763915016,0.64001979,3401.1,3400.4,0.849]
[1719763915312,0.64001979,3401.1,3400.3,2.3243]
[1719763915482,0.64001979,3401.1,3400.3,3.1733]
[1719763915980,0.64001979,3401.1,3400.4,0.2999932]
[1719763917578,0.64006625,3401.0,3400.4,0.2999932]
[1719763917783,0.64006625,3400.9,3400.4,0.2999932]
[1719763918044,3.0,3401.2,3400.4,0.2999932]
[1719763918305,0.64006743,3401.1,3400.4,0.2999932]
[1719763919514,0.64006743,3401.1,3400.4,0.2999932]
[1719763920788,0.64007356,3401.0,3400.4,0.2999932]
[1719763921004,2.89797356,3400.9,3400.4,0.2999932]
[1719763921220,0.64007356,3400.8,3400.4,0.2999932]
[1719763921367,0.92987092,3400.8,3400.3,2.3243]
[1719763921725,0.92987092,3400.8,3400.1,0.849]
[1719763921944,0.92987092,3400.8,3400.1,3.2293]
[1719763922156,0.92987092,3400.8,3400.2,0.3000139]
[1719763923096,0.64019145,3400.7,3400.2,0.3000139]
[1719763923414,0.64019165,3400.6,3400.2,0.3000139]
[1719763923725,0.28979736,3400.8,3400.2,0.3000139]
[1719763923922,0.33966974,3400.7,3400.2,0.3000139]
[1719763924219,0.97984842,3400.7,3400.2,0.3000139]
[1719763925035,0.97984842,3400.7,3400.1,2.3803]
[1719763925547,0.97984842,3400.7,3400.2,0.2982081]
[1719763925548,2.2579,3400.6,3400.2,0.2982081]
[1719763925731,1.29293326,3400.5,3399.7,2.3803]
[1719763925943,0.64017868,3400.4,3399.7,2.3803]
[1719763926227,0.64042618,3400.3,3399.7,2.3803]
[1719763926388,3.65275458,3400.5,3399.8,0.2897753]
[1719763926590,0.64042735,3400.4,3399.8,1.1387753]
[1719763926830,0.64042735,3400.4,3399.8,0.849]
[1719763929453,3.65275458,3400.5,3399.8,0.849]
[1719763933261,0.33601359,3400.4,3399.8,0.849]
[1719763933609,0.33601359,3400.4,3399.9,0.28976495]
[1719763941550,0.33601359,3400.4,3399.7,3.2293]
[1719763941858,0.33601359,3400.4,3399.8,0.28984696]
[1719763942302,0.33601359,3400.4,3399.8,0.849]
[1719763942605,0.33601359,3400.4,3399.9,0.28983661]
[1719763942747,0.33966974,3400.3,3399.9,0.28983661]
[1719763943599,0.33966974,3400.3,3399.7,2.3803]
[1719763943983,0.33966974,3400.3,3399.8,0.28984696]
[1719763944162,0.33966974,3400.3,3399.7,2.3803]
[1719763944553,0.33966974,3400.3,3399.8,0.28985837]
[1719763944778,0.33966974,3400.3,3399.7,2.3803]
[1719763944990,0.33966974,3400.3,3399.9,0.28984802]
[1719763945152,0.45246833,3400.2,3399.9,0.28984802]
[1719763945349,0.45246833,3400.2,3399.7,2.3803]
[1719763945601,0.45246833,3400.2,3399.8,0.28986488]
[1719763945815,3.45246833,3400.2,3399.8,0.28986488]
[1719763946096,3.45246833,3400.2,3399.7,2.3803]
[1719763946756,3.45246833,3400.2,3399.6,0.849]
[1719763946956,0.53629984,3400.1,3399.6,0.849]
[1719763947190,0.53629984,3400.1,3399.7,0.28987523]
[1719763948284,0.53629984,3400.1,3399.5,3.1522]
[1719763948921,0.53629984,3400.1,3399.6,0.28991327]
[1719763952348,3.45246833,3400.2,3399.6,0.28991327]
[1719763952522,3.2944,3400.1,3399.6,0.28991327]
[1719763952724,3.0,3400.0,3399.6,0.28991327]
[1719763952923,3.0,3400.0,3399.3,0.849]
[1719763953238,5.4454,3400.1,3399.4,0.28992746]
[1719763953426,0.37468683,3400.0,3399.4,0.28992746]
[1719763953739,3.37468683,3400.0,3399.4,0.28992746]
[1719763954096,3.37468683,3400.0,3399.3,0.849]
[1719763954301,3.37468683,3400.0,3399.5,0.28994318]
[1719763954526,3.37468683,3400.0,3399.4,0.28995353]
[1719763954730,3.37468683,3400.0,3399.6,0.28993283]
[1719763955033,0.50128275,3399.9,3399.7,0.28992248]
[1719763955202,3.37468683,3400.0,3399.3,0.849]
[1719763955401,3.37468683,3400.0,3399.8,0.28991213]
[1719763955602,3.37468683,3400.0,3399.3,0.849]
[1719763956017,3.37468683,3400.0,3399.4,0.28995353]
[1719763957777,3.37468683,3400.0,3399.4,0.23995353]
[1719763962760,3.0,3400.0,3399.4,0.23995353]
[1719763962953,2.4454,3400.1,3399.5,0.849]
[1719763963372,2.4454,3400.1,3399.6,0.28828083]
[1719763970485,0.64065896,3400.0,3399.6,0.28828083]
[1719763970690,3.64065896,3400.0,3399.6,0.28828083]
[1719763970854,3.0,3400.0,3399.6,0.28828083]
[1719763971054,2.4454,3400.1,3399.6,0.28828083]
[1719763971255,0.64065767,3400.0,3399.6,0.28828083]
[1719763971455,3.64065767,3400.0,3399.6,0.28828083]
[1719763971656,3.0,3400.0,3399.6,0.28828083]
[1719763971856,2.4454,3400.1,3399.6,0.28828083]
[1719763972055,0.64065836,3400.0,3399.6,0.28828083]
[1719763972289,3.64065836,3400.0,3399.6,0.28828083]
[1719763972489,3.99350584,3400.0,3399.6,0.28828083]
[1719763972990,3.0,3400.0,3399.6,0.28828083]
[1719763973298,3.0,3400.3,3399.6,0.28828083]
[1719763973502,0.64054718,3400.2,3399.6,0.28828083]
[1719763974870,3.0,3400.3,3399.6,0.28828083]
[1719763974871,0.6405605,3400.1,3399.6,0.28828083]
[1719763975172,3.0,3400.3,3399.6,0.28828083]
[1719763975400,0.6405559,3400.2,3399.6,0.28828083]
[1719763975581,0.6405559,3400.2,3399.7,2.4416]
[1719763976011,0.6405559,3400.2,3399.8,0.28824384]
[1719763976314,0.6405559,3400.2,3399.7,2.4416]
[1719763976609,0.6405559,3400.2,3399.9,0.28823349]
[1719763976905,0.6405559,3400.2,3400.0,0.28818894]
[1719763977272,0.6405559,3400.2,3399.7,2.4416]
[1719763977472,0.6405559,3400.2,3399.8,0.28820964]
[1719763977686,0.6405559,3400.2,3399.7,2.4416]
[1719763977880,0.6405559,3400.2,3399.8,0.28820964]
[1719763978073,0.6405559,3400.2,3399.7,2.4416]
[1719763978312,0.6405559,3400.2,3399.8,0.28820964]
[1719763978829,0.6405559,3400.2,3399.9,0.28819929]
[1719763979029,0.6405559,3400.2,3399.7,2.4416]
[1719763979330,0.6405559,3400.2,3399.8,0.28820964]
[1719763979834,0.6405559,3400.2,3399.9,0.28819929]
[1719763980037,0.6405559,3400.2,3399.7,2.4416]
[1719763980221,0.6405559,3400.2,3399.8,0.28820964]
[1719763980406,0.5905559,3400.2,3399.7,2.4416]
[1719763980602,0.5905559,3400.2,3399.8,0.28820964]
[1719763980841,0.5905559,3400.2,3399.7,2.4416]
[1719763981047,3.0,3400.3,3399.8,0.28820964]
[1719763981226,3.0,3400.3,3399.6,0.849]
[1719763981426,3.0,3400.3,3399.7,0.28821999]
[1719763983243,3.0,3400.3,3399.5,2.4416]
[1719763983449,3.0,3400.3,3399.6,0.28823034]
[1719763984914,3.849,3400.3,3399.6,0.28823034]
[1719763985153,3.96429421,3400.3,3399.6,0.28823034]
[1719763985444,2.3762,3400.2,3399.4,2.4416]
[1719763985659,2.3762,3400.2,3399.5,0.28821951]
[1719763987083,2.3762,3400.2,3399.4,2.4416]
[1719763987274,2.3762,3400.2,3399.5,0.28831889]
[1719763988226,2.3762,3400.2,3399.3,0.849]
[1719763988427,2.3762,3400.2,3399.4,0.28832924]
[1719763988972,0.849,3400.1,3399.4,0.28832924]
[1719763989279,0.849,3400.1,3399.2,2.4188]
[1719763989447,3.849,3400.1,3399.3,0.28833959]
[1719763989670,2.3235,3400.0,3399.3,0.28833959]
[1719763990072,5.3235,3400.0,3399.3,0.28833959]
[1719763990274,5.2935,3400.0,3399.3,0.28833959]
[1719763992005,3.0,3399.9,3399.3,0.28833959]
[1719763992183,2.2935,3400.0,3399.3,0.28833959]
[1719763993256,3.00417942,3400.0,3399.3,0.28833959]
[1719763993488,3.0,3399.9,3399.3,0.28833959]
[1719763995530,0.61909467,3399.8,3399.3,0.28833959]
[1719763995906,0.61909467,3399.8,3399.2,3.2678]
[1719763996101,0.61909467,3399.8,3399.4,0.28832924]
[1719763996391,0.61909467,3399.8,3399.2,3.2678]
[1719763996601,0.61909467,3399.8,3399.5,0.28831889]
[1719763996805,0.61909467,3399.8,3399.2,3.2678]
[1719763997141,3.0,3399.9,3399.2,3.2678]
[1719763997355,0.61910454,3399.8,3399.3,0.28833959]
[1719763997693,0.61910454,3399.8,3399.2,2.4188]
[1719763997895,0.61910454,3399.8,3399.3,0.28833959]
[1719763998136,0.61910454,3399.8,3399.2,2.4188]
[1719763998434,3.1844,3399.6,3399.4,0.28832924]
[1719763998743,0.61910454,3399.5,3398.8,3.3458]
[1719763998956,1.05858104,3399.5,3398.8,3.3458]
[1719763999098,0.61910454,3399.5,3398.8,3.3458]
[1719764000540,2.3354,3399.6,3398.8,3.3458]
[1719764001008,0.61930517,3399.5,3398.8,3.3458]
[1719764002713,2.3354,3399.6,3398.8,3.3458]
[1719764004552,3.0,3399.7,3398.8,3.3458]
[1719764004762,3.0,3399.8,3398.9,2.83138]
[1719764004950,3.0,3399.8,3399.0,0.849]
[1719764005182,0.619172,3399.7,3399.0,0.849]
[1719764005381,0.619172,3399.7,3398.9,3.68038]
[1719764005547,0.619172,3399.7,3399.1,0.28841081]
[1719764005887,1.468172,3399.7,3399.2,0.28840045]
[1719764006041,0.619172,3399.6,3398.9,3.3458]